fUSD/lending_fUSD_20260228
["ID","MTS","AMOUNT","RATE_DAILY","PERIOD"]
[406938390,1772305840956,-500.0,0.00015699,2]
[406938391,1772305840965,-500.0,0.00015699,2]
[406938392,1772305840975,-500.0,0.00015699,2]
[406938393,1772305840984,-500.0,0.00015699,2]
[406938394,1772305840993,-500.0,0.00015699,2]
[406938395,1772305841002,-500.0,0.00015699,2]
[406938396,1772305841011,-500.0,0.00015699,2]
[406938397,1772305841020,-500.0,0.00015699,2]
[406938398,1772305841030,-500.0,0.00015699,2]
[406938399,1772305841039,-500.0,0.00015699,2]
[406938400,1772305841048,-500.0,0.00015699,2]
[406938401,1772305841057,-500.0,0.00015699,2]
[406938402,1772305841066,-500.0,0.00015699,2]
[406938403,1772305841075,-500.0,0.00015699,2]
[406938404,1772305841084,-500.0,0.00015699,2]
[406938405,1772305841093,-500.0,0.00015699,2]
[406938406,1772305841102,-500.0,0.00015699,2]
[406938407,1772305841111,-500.0,0.00015699,2]
[406938408,1772305841120,-500.0,0.00015699,2]
[406938409,1772305841130,-500.0,0.00015699,2]
[406938410,1772305841139,-500.0,0.00015699,2]
[406938411,1772305841148,-500.0,0.00015699,2]
[406938412,1772305841158,-500.0,0.00015699,2]
[406938413,1772305841167,-500.0,0.00015699,2]
[406938414,1772305841176,-500.0,0.00015699,2]
[406938415,1772305841186,-500.0,0.00015699,2]
[406938416,1772305841195,-500.0,0.00015699,2]
[406938417,1772305841204,-500.0,0.00015699,2]
[406938418,1772305841214,-264.28898988,0.00015699,2]
[406938419,1772305841223,-500.0,0.00015699,2]
[406938420,1772305841233,-500.0,0.00015699,2]
[406938421,1772305841242,-500.0,0.00015699,2]
[406938422,1772305841251,-500.0,0.00015699,2]
[406938423,1772305841261,-500.0,0.00015699,2]
[406938424,1772305841270,-500.0,0.00015699,2]
[406938425,1772305841280,-500.0,0.00015699,2]
[406938426,1772305841292,-500.0,0.00015699,2]
[406938427,1772305841306,-500.0,0.00015699,2]
[406938428,1772305841315,-263.06012588,0.00015699,2]
[406938429,1772305841324,-500.0,0.00015699,2]
[406938430,1772305841333,-500.0,0.00015699,2]
[406938431,1772305841342,-500.0,0.00015699,2]
[406938432,1772305841351,-500.0,0.00015699,2]
[406938433,1772305841361,-500.0,0.00015699,2]
[406938434,1772305841371,-500.0,0.00015699,2]
[406938435,1772305841380,-500.0,0.00015699,2]
[406938436,1772305841390,-500.0,0.00015699,2]
[406938437,1772305841399,-500.0,0.00015699,2]
[406938438,1772305841409,-500.0,0.00015699,2]
[406938439,1772305841418,-500.0,0.00015699,2]
[406938440,1772305841427,-500.0,0.00015699,2]
[406938441,1772305841436,-397.31281792,0.00015699,2]
[406938442,1772305841449,-102.68718208,0.00015699,2]
[406938443,1772305841459,-500.0,0.00015699,2]
[406938444,1772305841468,-500.0,0.00015699,2]
[406938445,1772305841478,-500.0,0.00015699,2]
[406938446,1772305841489,-500.0,0.00015699,2]
[406938447,1772305841498,-500.0,0.00015699,2]
[406938448,1772305841507,-500.0,0.00015699,2]
[406938449,1772305841517,-500.0,0.00015699,2]
[406938450,1772305841526,-500.0,0.00015699,2]
[406938451,1772305841535,-500.0,0.00015699,2]
[406938452,1772305841544,-500.0,0.00015699,2]
[406938453,1772305841554,-500.0,0.00015699,2]
[406938454,1772305841563,-207.62504932,0.00015699,2]
[406938455,1772305841572,-500.0,0.00015699,2]
[406938456,1772305841582,-235.03057136,0.00015699,2]
[406938457,1772305841591,-500.0,0.00015699,2]
[406938458,1772305841601,-378.7648695,0.00015699,2]
[406938459,1772305841610,-500.0,0.00015699,2]
[406938460,1772305841619,-500.0,0.00015699,2]
[406938461,1772305841628,-500.0,0.00015699,2]
[406938462,1772305841638,-500.0,0.00015699,2]
[406938463,1772305841648,-429.12300416,0.00015699,2]
[406938464,1772305841658,-500.0,0.00015699,2]
[406938465,1772305841667,-200180.74497623,0.000157,2]
[406938489,1772305842954,-812.4826823,0.000157,2]
[406938494,1772305843043,-24.80656965,0.000157,2]
[406938495,1772305843057,-2500.0,0.000157,2]
[406938496,1772305843114,-12251.29312372,0.000157,2]
[406938497,1772305843169,-20303.11128965,0.000157,2]
[406938498,1772305843180,-5322.392386,0.000157,2]
[406938499,1772305843195,-502.8864,0.000157,2]
[406938501,1772305843368,-222.8955016,0.000157,2]
[406938520,1772305845651,-276.23281431,0.000156,2]
[406938574,1772307031914,-884.0,0.00011563,2]
[406938575,1772307031924,-212.51621776,0.00011852,2]
[406938576,1772307031935,-87.48378224,0.00011852,2]
[406938577,1772307031945,-300.0,0.00012141,2]
[406938578,1772307031953,-195.0,0.00012719,2]
[406938579,1772307031962,-300.0,0.00012719,2]
[406938580,1772307031972,-300.0,0.00012719,2]
[406938581,1772307031981,-150.22409891,0.00013325,2]
[406938582,1772307031990,-533.0,0.0001411,2]
[406938583,1772307031999,-1200.0,0.00014127,2]
[406938584,1772307032008,-10.38620153,0.00014154,2]
[406938585,1772307032019,-289.61379847,0.00014154,2]
[406938586,1772307032028,-112.17620153,0.00014154,2]
[406938587,1772307032039,-187.82379847,0.00014154,2]
[406938588,1772307032048,-463.66350074,0.00014155,2]
[406938589,1772307032062,-736.33649926,0.00014155,2]
[406938590,1772307032071,-204.781348,0.00014156,7]
[406938591,1772307032080,-150.99,0.00014156,2]
[406938592,1772307032089,-659.5,0.00014156,2]
[406938593,1772307032098,-200.0,0.00014365,2]
[406938594,1772307032107,-150.0,0.00014403,2]
[406938595,1772307032116,-200.0,0.00014404,2]
[406938596,1772307032125,-500.0,0.00014404,2]
[406938597,1772307032134,-151.0,0.00014404,2]
[406938598,1772307032142,-500.0,0.00014404,2]
[406938599,1772307032151,-151.0,0.00014404,2]
[406938600,1772307032160,-500.0,0.00014404,2]
[406938601,1772307032169,-151.0,0.00014404,2]
[406938602,1772307032178,-445.02352046,0.00014404,2]
[406938604,1772307032194,-54.97647954,0.00014404,2]
[406938606,1772307032203,-151.0,0.00014404,2]
[406938608,1772307032212,-500.0,0.00014404,2]
[406938609,1772307032221,-151.0,0.00014404,2]
[406938610,1772307032230,-500.0,0.00014404,2]
[406938611,1772307032239,-151.0,0.00014404,2]
[406938612,1772307032248,-500.0,0.00014404,2]
[406938613,1772307032257,-151.0,0.00014404,2]
[406938614,1772307032266,-500.0,0.00014404,2]
[406938615,1772307032275,-151.0,0.00014404,2]
[406938616,1772307032284,-500.0,0.00014404,2]
[406938617,1772307032292,-151.0,0.00014404,2]
[406938618,1772307032301,-500.0,0.00014404,2]
[406938619,1772307032310,-500.0,0.00014404,2]
[406938620,1772307032319,-151.0,0.00014404,2]
[406938621,1772307032328,-222.30735036,0.00014404,2]
[406938622,1772307032338,-500.0,0.00014404,2]
[406938623,1772307032346,-151.0,0.00014404,2]
[406938624,1772307032355,-151.0,0.00014404,2]
[406938625,1772307032364,-915.50995396,0.0001449,2]
[406938626,1772307032375,-1815.35004604,0.0001449,2]
[406938627,1772307032384,-150.0,0.00014691,2]
[406938628,1772307032393,-3240.0,0.00014882,2]
[406938629,1772307032402,-2730.86,0.00015215,2]
[406938630,1772307032411,-250.0,0.00015278,2]
[406938631,1772307032420,-3396.11,0.00015479,2]
[406938632,1772307032429,-224.9999,0.000155,2]
[406938633,1772307032438,-164.05196243,0.000155,2]
[406938634,1772307032446,-672.51381582,0.000155,2]
[406938635,1772307032455,-143.64271785,0.000155,2]
[406938636,1772307032467,-829.04519664,0.000155,2]
[406938637,1772307032477,-5000.0,0.000155,2]
[406938638,1772307032487,-259.17530453,0.000155,2]
[406938639,1772307032497,-972.09674459,0.000155,2]
[406938640,1772307032506,-36662.304,0.000155,2]
[406938641,1772307032516,-2500.0,0.000155,2]
[406938642,1772307032527,-471.14282616,0.000155,2]
[406938643,1772307032536,-1016.251,0.00015521,2]
[406938644,1772307032545,-150.0,0.00015527,2]
[406938645,1772307032557,-202.6895304,0.0001559,2]
[406938646,1772307032568,-261.49,0.00015591,2]
[406938647,1772307032577,-151.0,0.00015597,2]
[406938648,1772307032586,-2303.2638686,0.000156,2]
[406938649,1772307032596,-303.6138,0.000156,2]
[406938650,1772307032606,-52653.30886148,0.000156,2]
[406938651,1772307032619,-1254.41808677,0.000156,2]
[406938652,1772307038026,-426.74877753,0.000155,2]
[406938653,1772307038039,-4573.25122247,0.000155,2]
[406938654,1772307038048,-500.0,0.00015599,2]
[406938656,1772307038058,-500.0,0.00015599,2]
[406938657,1772307038067,-500.0,0.00015599,2]
[406938659,1772307038076,-500.0,0.00015599,2]
[406938660,1772307038086,-500.0,0.00015599,2]
[406938662,1772307038095,-500.0,0.00015599,2]
[406938663,1772307038104,-500.0,0.00015599,2]
[406938664,1772307038113,-500.0,0.00015599,2]
[406938665,1772307038123,-500.0,0.00015599,2]
[406938666,1772307038132,-500.0,0.00015599,2]
[406938667,1772307038141,-500.0,0.00015599,2]
[406938668,1772307038151,-500.0,0.00015599,2]
[406938669,1772307038160,-500.0,0.00015599,2]
[406938670,1772307038168,-483.54529548,0.00015599,2]
[406938671,1772307038177,-500.0,0.00015599,2]
[406938672,1772307038187,-500.0,0.00015599,2]
[406938673,1772307038196,-298.90061245,0.00015599,2]
[406938674,1772307038211,-201.09938755,0.00015599,2]
[406938675,1772307038220,-325.54649677,0.00015599,2]
[406938688,1772307043286,-174.45350323,0.00015599,2]
[406938689,1772307043296,-500.0,0.00015599,2]
[406938690,1772307043306,-500.0,0.00015599,2]
[406938691,1772307043316,-500.0,0.00015599,2]
[406938692,1772307043327,-500.0,0.00015599,2]
[406938693,1772307043336,-500.0,0.00015599,2]
[406938694,1772307043345,-500.0,0.00015599,2]
[406938695,1772307043355,-500.0,0.00015599,2]
[406938696,1772307043365,-500.0,0.00015599,2]
[406938697,1772307043375,-500.0,0.00015599,2]
[406938698,1772307043385,-500.0,0.00015599,2]
[406938699,1772307043394,-500.0,0.00015599,2]
[406938700,1772307043404,-500.0,0.00015599,2]
[406938701,1772307043414,-500.0,0.00015599,2]
[406938702,1772307043424,-500.0,0.00015599,2]
[406938703,1772307043434,-5664.75109367,0.000156,2]
[406938704,1772307043446,-13469.51382304,0.000156,2]
[406938705,1772307043466,-49033.03803119,0.000156,2]
[406938706,1772307043477,-131383.19617963,0.000156,2]
[406938738,1772307045626,-716313.87048499,0.000156,2]
[406938740,1772307045895,-295.365,0.000156,2]
[406938744,1772307046036,-328.06359124,0.000156,2]
[406938745,1772307046048,-1271.9283265,0.000156,2]
[406938746,1772307046059,-336.030554,0.000156,2]
[406938747,1772307046270,-523.32762878,0.000156,2]
[406938748,1772307046282,-1073.15,0.000156,2]
[406938798,1772308232164,-217.041627,0.00013384,2]
[406938799,1772308232175,-300.0,0.00013545,2]
[406938800,1772308232186,-300.0,0.00013676,2]
[406938801,1772308232196,-300.0,0.00013676,2]
[406938802,1772308232206,-223.6698,0.00013676,2]
[406938803,1772308232216,-245.737618,0.00013757,7]
[406938804,1772308232227,-1200.0,0.00013797,2]
[406938805,1772308232237,-7669.92,0.00013798,2]
[406938806,1772308232248,-1640.3,0.00013802,2]
[406938807,1772308232258,-2454.430955,0.0001382,2]
[406938808,1772308232278,-422.839045,0.0001382,2]
[406938809,1772308232287,-1000.0,0.00013829,2]
[406938810,1772308232297,-166.66,0.00013896,2]
[406938811,1772308232308,-5470.74,0.00013924,2]
[406938812,1772308232318,-259.33,0.00013927,2]
[406938813,1772308232328,-150.99,0.00013927,2]
[406938814,1772308232342,-3644.05,0.00013984,2]
[406938815,1772308232352,-500.0,0.00014001,2]
[406938816,1772308232363,-500.0,0.00014001,2]
[406938817,1772308232373,-500.0,0.00014001,2]
[406938818,1772308232383,-500.0,0.00014001,2]
[406938819,1772308232393,-500.0,0.00014001,2]
[406938820,1772308232402,-500.0,0.00014001,2]
[406938821,1772308232412,-500.0,0.00014001,2]
[406938822,1772308232422,-500.0,0.00014001,2]
[406938823,1772308232432,-500.0,0.00014001,2]
[406938825,1772308232441,-200.0,0.00014001,2]
[406938827,1772308232451,-500.0,0.00014001,2]
[406938829,1772308232460,-500.0,0.00014001,2]
[406938831,1772308232472,-500.0,0.00014001,2]
[406938833,1772308232484,-500.0,0.00014001,2]
[406938835,1772308232494,-500.0,0.00014001,2]
[406938837,1772308232503,-500.0,0.00014001,2]
[406938839,1772308232513,-151.0,0.00014001,2]
[406938841,1772308232522,-151.0,0.00014001,2]
[406938843,1772308232532,-151.0,0.00014001,2]
[406938845,1772308232546,-151.0,0.00014001,2]
[406938846,1772308232556,-151.0,0.00014001,2]
[406938847,1772308232565,-151.0,0.00014001,2]
[406938848,1772308232575,-151.0,0.00014001,2]
[406938849,1772308232585,-151.0,0.00014001,2]
[406938850,1772308232594,-151.0,0.00014001,2]
[406938851,1772308232603,-151.0,0.00014001,2]
[406938852,1772308232613,-151.0,0.00014001,2]
[406938853,1772308232623,-151.0,0.00014001,2]
[406938854,1772308232634,-11604.17,0.00014009,2]
[406938855,1772308232643,-529.0,0.0001411,2]
[406938856,1772308232653,-166.66,0.00014188,2]
[406938857,1772308232663,-3503.73,0.00014335,2]
[406938858,1772308232673,-200.0,0.0001438,2]
[406938859,1772308232683,-166.66,0.00014481,2]
[406938860,1772308232692,-500.0,0.00014481,2]
[406938861,1772308232702,-166.66,0.00014496,2]
[406938862,1772308232712,-500.0,0.00014643,2]
[406938863,1772308232724,-3503.73,0.00014693,2]
[406938864,1772308232733,-300.0,0.00014722,2]
[406938865,1772308232745,-150.6171655,0.00014722,2]
[406938866,1772308232755,-600.0,0.00014722,2]
[406938867,1772308232764,-600.0,0.00014722,2]
[406938868,1772308232775,-600.0,0.00014722,2]
[406938869,1772308232784,-600.0,0.00014722,2]
[406938870,1772308232794,-740.27295164,0.00014722,2]
[406938871,1772308232803,-2500.0,0.00014722,2]
[406938872,1772308232813,-2500.0,0.00014722,2]
[406938873,1772308232822,-2500.0,0.00014722,2]
[406938874,1772308232832,-2500.0,0.00014722,2]
[406938875,1772308232842,-2500.0,0.00014722,2]
[406938876,1772308232851,-386.13931337,0.00014722,2]
[406938877,1772308232860,-166.66,0.00014773,2]
[406938878,1772308232870,-1238.81,0.000148,2]
[406938879,1772308232880,-169.43046208,0.000149,2]
[406938880,1772308232890,-166.66,0.00014975,2]
[406938881,1772308232900,-3503.73,0.00015052,2]
[406938882,1772308232910,-166.66,0.00015066,2]
[406938883,1772308232921,-5027.8003,0.00015179,2]
[406938884,1772308232932,-1235.2464,0.00015179,2]
[406938885,1772308232941,-2177.7464,0.00015179,2]
[406938886,1772308232951,-2303.41635618,0.000152,2]
[406938887,1772308232960,-10829.97801964,0.00015269,2]
[406938888,1772308232969,-1000.0,0.00015279,2]
[406938889,1772308232981,-2500.0,0.00015279,2]
[406938890,1772308232991,-5000.0,0.00015279,2]
[406938891,1772308233000,-165.34371315,0.00015283,2]
[406938892,1772308233010,-1339.27019517,0.00015283,2]
[406938893,1772308233019,-183.46260466,0.00015283,2]
[406938894,1772308233029,-1525.4143838,0.00015283,2]
[406938895,1772308233038,-1945.62859495,0.00015283,2]
[406938896,1772308233047,-2776.37218313,0.0001531,2]
[406938897,1772308233057,-166.66,0.00015358,2]
[406938898,1772308233066,-190.56335456,0.00015369,2]
[406938899,1772308233075,-151.0,0.00015376,2]
[406938900,1772308233085,-209.19,0.00015378,2]
[406938901,1772308233095,-500.0,0.00015378,2]
[406938902,1772308233105,-500.0,0.00015378,2]
[406938903,1772308233115,-500.0,0.00015378,2]
[406938904,1772308233131,-500.0,0.00015378,2]
[406938905,1772308233144,-500.0,0.00015378,2]
[406938906,1772308233154,-500.0,0.00015378,2]
[406938907,1772308233164,-500.0,0.00015378,2]
[406938908,1772308233173,-500.0,0.00015378,2]
[406938909,1772308233183,-500.0,0.00015378,2]
[406938910,1772308233193,-500.0,0.00015378,2]
[406938911,1772308233203,-500.0,0.00015378,2]
[406938912,1772308233421,-500.0,0.00015378,2]
[406938913,1772308233435,-500.0,0.00015378,2]
[406938914,1772308233445,-500.0,0.00015378,2]
[406938915,1772308233455,-500.0,0.00015378,2]
[406938916,1772308233464,-500.0,0.00015378,2]
[406938917,1772308233475,-500.0,0.00015378,2]
[406938918,1772308233485,-500.0,0.00015378,2]
[406938919,1772308233495,-500.0,0.00015378,2]
[406938920,1772308233505,-500.0,0.00015378,2]
[406938921,1772308233514,-500.0,0.00015378,2]
[406938922,1772308233526,-500.0,0.00015378,2]
[406938923,1772308233537,-500.0,0.00015378,2]
[406938924,1772308233547,-500.0,0.00015378,2]
[406938925,1772308233557,-500.0,0.00015378,2]
[406938926,1772308233566,-500.0,0.00015378,2]
[406938927,1772308233576,-500.0,0.00015378,2]
[406938928,1772308233586,-500.0,0.00015378,2]
[406938929,1772308233596,-500.0,0.00015378,2]
[406938930,1772308233605,-500.0,0.00015378,2]
[406938931,1772308233615,-500.0,0.00015378,2]
[406938932,1772308233624,-500.0,0.00015378,2]
[406938933,1772308233634,-500.0,0.00015378,2]
[406938934,1772308233643,-500.0,0.00015378,2]
[406938935,1772308233652,-500.0,0.00015378,2]
[406938936,1772308233662,-500.0,0.00015378,2]
[406938937,1772308233672,-500.0,0.00015378,2]
[406938938,1772308233681,-500.0,0.00015378,2]
[406938939,1772308233691,-500.0,0.00015378,2]
[406938940,1772308233700,-500.0,0.00015378,2]
[406938941,1772308233710,-500.0,0.00015378,2]
[406938942,1772308233719,-500.0,0.00015378,2]
[406938943,1772308233731,-500.0,0.00015378,2]
[406938944,1772308233740,-200.76354564,0.00015378,2]
[406938945,1772308233749,-500.0,0.00015378,2]
[406938946,1772308233758,-500.0,0.00015378,2]
[406938947,1772308233768,-189.02021491,0.00015378,2]
[406938948,1772308233778,-500.0,0.00015378,2]
[406938949,1772308233788,-500.0,0.00015378,2]
[406938950,1772308233798,-300.0,0.00015378,2]
[406938951,1772308233807,-500.0,0.00015378,2]
[406938952,1772308233817,-154.02121994,0.00015378,2]
[406938953,1772308233827,-500.0,0.00015378,2]
[406938954,1772308233837,-177.0064701,0.00015378,2]
[406938955,1772308233846,-500.0,0.00015378,2]
[406938956,1772308233855,-500.0,0.00015378,2]
[406938957,1772308233864,-500.0,0.00015378,2]
[406938958,1772308233873,-500.0,0.00015378,2]
[406938959,1772308233882,-298.90378634,0.00015378,2]
[406938960,1772308233892,-500.0,0.00015379,2]
[406938961,1772308233901,-1614.61190065,0.00015383,2]
[406938962,1772308233912,-151.0,0.00015397,2]
[406938963,1772308233923,-151.0,0.00015397,2]
[406938964,1772308233934,-154.74390454,0.00015397,2]
[406938965,1772308233944,-500.0,0.00015399,2]
[406938966,1772308233953,-531.59893413,0.00015399,2]
[406938967,1772308233963,-534.14208811,0.00015399,2]
[406938968,1772308233973,-500.0,0.00015399,2]
[406938969,1772308233983,-500.0,0.00015399,2]
[406938970,1772308233993,-500.0,0.00015399,2]
[406938971,1772308234003,-500.0,0.00015399,2]
[406938972,1772308234013,-500.0,0.00015399,2]
[406938973,1772308234023,-500.0,0.00015399,2]
[406938974,1772308234032,-465.58677083,0.00015399,2]
[406938975,1772308234042,-500.0,0.00015399,2]
[406938976,1772308234052,-500.0,0.00015399,2]
[406938977,1772308234061,-500.0,0.00015399,2]
[406938978,1772308234071,-500.0,0.00015399,2]
[406938979,1772308234081,-500.0,0.00015399,2]
[406938980,1772308234091,-250.0,0.00015399,2]
[406938981,1772308234100,-33051.93866253,0.000154,2]
[406938982,1772308234212,-22006.73119313,0.000154,2]
[406938983,1772308234224,-12863.81279358,0.000154,2]
[406938984,1772308234239,-685.86632813,0.000154,2]
[406938985,1772308234251,-932.31905122,0.000154,2]
[406938986,1772308234271,-1003.9834,0.000154,2]
[406938996,1772308238235,-46110.69171793,0.000154,2]
[406938997,1772308238248,-1892.46515391,0.000154,2]
[406938998,1772308238261,-316.27930351,0.000154,2]
[406938999,1772308238273,-615.21547425,0.000154,2]
[406939000,1772308238289,-543.73408248,0.000154,2]
[406939208,1772308240391,-1546.64853205,0.000154,2]
[406939210,1772308240402,-252.37131643,0.000154,2]
[406939212,1772308240413,-1273.0273884,0.000154,2]
[406939214,1772308240424,-277113.00700245,0.000154,2]
[406939216,1772308240434,-3503.73,0.0001541,2]
[406939219,1772308240444,-166.66,0.00015453,2]
[406939221,1772308240454,-288.6436,0.000155,2]
[406939223,1772308240463,-100000.0,0.000155,2]
[406939225,1772308240473,-150.0,0.000155,2]
[406939227,1772308240482,-150.0,0.000155,2]
[406939229,1772308240492,-150.0,0.000155,2]
[406939231,1772308240502,-150.0,0.000155,2]
[406939233,1772308240512,-150.0,0.000155,2]
[406939235,1772308240521,-150.0,0.000155,2]
[406939237,1772308240531,-1000.0,0.00015558,2]
[406939239,1772308240540,-1339.27019514,0.00015574,2]
[406939241,1772308240550,-1525.4143838,0.00015574,2]
[406939243,1772308240559,-2122.1689942,0.00015599,2]
[406939245,1772308240568,-335.1848719,0.00015599,2]
[406939247,1772308240577,-508.46543711,0.00015599,2]
[406939249,1772308240586,-7782.7047608,0.00015599,2]
[406939251,1772308240596,-43483.1644072,0.00015599,2]
[406939253,1772308240605,-16461.8262521,0.00015599,2]
[406939254,1772308240614,-209.19,0.00015652,2]
[406939255,1772308240623,-500.0,0.00015675,2]
[406939256,1772308240632,-500.0,0.00015675,2]
[406939257,1772308240642,-500.0,0.00015675,2]
[406939258,1772308240651,-500.0,0.00015675,2]
[406939259,1772308240660,-500.0,0.00015675,2]
[406939260,1772308240669,-269.917619,0.00015675,2]
[406939261,1772308240679,-500.0,0.00015675,2]
[406939262,1772308240688,-500.0,0.00015675,2]
[406939263,1772308240697,-500.0,0.00015675,2]
[406939264,1772308240706,-500.0,0.00015675,2]
[406939265,1772308240715,-500.0,0.00015675,2]
[406939266,1772308240725,-500.0,0.00015675,2]
[406939267,1772308240734,-500.0,0.00015675,2]
[406939268,1772308240743,-156.84976398,0.00015675,2]
[406939269,1772308240752,-151.0,0.00015675,2]
[406939270,1772308240761,-668.65185757,0.00015675,2]
[406939271,1772308240771,-267.46074303,0.00015675,2]
[406939272,1772308240780,-151.0,0.00015675,2]
[406939273,1772308240789,-151.0,0.00015675,2]
[406939274,1772308240798,-151.0,0.00015675,2]
[406939276,1772308240807,-151.0,0.00015675,2]
[406939278,1772308240816,-335.184872,0.000157,2]
[406939280,1772308240825,-53260.4563506,0.000157,2]
[406939282,1772308240835,-151.0,0.000157,2]
[406939284,1772308240844,-151.0,0.000157,2]
[406939286,1772308240853,-151.0,0.000157,2]
[406939288,1772308240862,-151.0,0.000157,2]
[406939290,1772308240872,-151.0,0.000157,2]
[406939292,1772308240881,-212.078952,0.000157,2]
[406939294,1772308240890,-151.0,0.000157,2]
[406939296,1772308240899,-151.0,0.000157,2]
[406939298,1772308240908,-151.0,0.000157,2]
[406939300,1772308240921,-271.75102,0.000157,2]
[406939302,1772308240931,-151.0,0.000157,2]
[406939304,1772308240940,-693.3919763,0.0001573,2]
[406939306,1772308240949,-3503.73,0.00015769,2]
[406939308,1772308240960,-719.04747942,0.00015785,2]
[406939310,1772308240969,-165.34371311,0.00015806,2]
[406939312,1772308240979,-1945.62859491,0.00015806,2]
[406939314,1772308240988,-500.0,0.00015807,2]
[406939316,1772308240998,-745.65223616,0.0001584,2]
[406939318,1772308241009,-1339.27019514,0.00015865,2]
[406939320,1772308241018,-1525.4143838,0.00015865,2]
[406939322,1772308241027,-773.2413689,0.00015895,2]
[406939324,1772308241036,-209.19,0.00015926,2]
[406939326,1772308241046,-166.66,0.00015932,2]
[406939328,1772308241055,-2730.86,0.00015939,2]
[406939330,1772308241064,-153.03143577,0.00015942,2]
[406939332,1772308241075,-801.85129955,0.0001595,2]
[406939334,1772308241084,-5066.6509523,0.0001596,2]
[406939336,1772308241093,-831.51979763,0.00016005,2]
[406939338,1772308241102,-162.781219,0.00016016,7]
[406939340,1772308241111,-862.28603014,0.0001606,2]
[406939342,1772308241121,-174.04581251,0.00016093,2]
[406939344,1772308241130,-160.0,0.00016093,2]
[406939346,1772308241140,-894.19061326,0.00016115,2]
[406939348,1772308241149,-9999.99,0.00016116,2]
[406939350,1772308241159,-1339.27019514,0.00016155,2]
[406939352,1772308241168,-1525.4143838,0.00016155,2]
[406939355,1772308241177,-927.27566595,0.0001617,2]
[406939358,1772308241187,-209.19,0.000162,2]
[406939360,1772308241196,-961.58486559,0.00016225,2]
[406939362,1772308241205,-997.16350561,0.0001628,2]
[406939364,1772308241214,-165.34371311,0.0001633,2]
[406939366,1772308241223,-1945.62859491,0.0001633,2]
[406939368,1772308241233,-8304.0,0.00016333,2]
[406939370,1772308241242,-800.0,0.00016356,2]
[406939372,1772308241251,-500.0,0.00016356,2]
[406939375,1772308241263,-1100.0,0.00016356,2]
[406939377,1772308241271,-267.35,0.00016381,2]
[406939379,1772308241281,-166.66,0.0001641,2]
[406939381,1772308241290,-218.23034,0.00016438,2]
[406939382,1772308241299,-151.0,0.00016438,2]
[406939384,1772308241308,-151.0,0.00016438,2]
[406939387,1772308241317,-151.0,0.00016438,2]
[406939389,1772308241327,-1339.27019514,0.00016446,2]
[406939391,1772308241336,-1525.4143838,0.00016446,2]
[406939393,1772308241344,-423.21736339,0.00016473,2]
[406939395,1772308241354,-209.2,0.00016474,2]
[406939396,1772308241363,-183.46260466,0.00016592,2]
[406939398,1772308241372,-2776.37218313,0.00016605,2]
[406939400,1772308241381,-2730.86,0.00016664,2]
[406939402,1772308241391,-1339.27019514,0.00016737,2]
[406939404,1772308241400,-1525.4143838,0.00016737,2]
[406939406,1772308241409,-165.34371311,0.00016853,2]
[406939408,1772308241419,-1945.62859491,0.00016853,2]